{"text_format":"1","workbook":"xlsx","n_sheets":4,"sheets":["Harmonogram","WNIOSEK","Arkusz1","Pomocnicz"],"not_rendered":{"charts":0,"images":3,"macros":1,"external_links":1,"defined_names":4,"comments":0,"pivot_tables":0},"unopened":[],"bounds":{"document_bytes":16777216,"sheet_cells":100000,"rows_first":2000,"rows_last":500,"rows_between":2000,"halvings":0,"cell_chars":16384,"cell_head_chars":4096},"cells_cut":0,"cells_raw":0,"read":"whole","date_system":"1900"}

{"sheet":"Harmonogram","index":0,"n_rows":14,"n_cols":14,"rows_kept":14,"cut":false,"hidden":false,"merged":[[0,0,0,8],[0,9,0,10],[12,0,12,2],[12,3,12,4],[7,1,7,2],[1,6,4,7],[5,9,6,9],[5,10,6,10],[1,5,4,5],[1,0,6,0],[1,1,6,2],[1,8,4,12],[5,8,6,8],[9,8,9,9],[7,11,7,12],[8,0,9,0],[1,3,4,4],[5,6,6,6],[5,7,6,7],[8,1,9,2],[5,11,6,12],[8,11,9,12],[5,3,6,4],[7,3,7,4],[8,3,9,4],[5,5,6,5]]}
["Usuwanie wyrobów zawierających azbest z terenu Gminy ",null,null,null,null,null,null,null,null,"BALIGRÓD",null,null,1]
["Lp.","Rodzaj robót",null,"Masa odpadów",null,"Koszt całkowity\nzadania [zł]\n","Termin realizacji\n(dzień, miesiąc, rok)\n",null,"Planowane nakłady finansowe [zł]"]
[]
[]
[]
[null,null,null,"Ilość odpadów zawierających azbest [Mg]",null,"Koszt kwalifikowany\nzadania [zł]\n","rozpoczęcie","zakończenie","dotacja\nWFOŚiGW\n","dotacja\nNFOŚiGW\n","netto/brutto\n","środki własne jst/inne"]
[]
[null,"1.",null,"2.",null,"4.","5.","6.","7.","8.","9.","10.",null,1]
["1.","Unieszkodliwianie wyrobów zawierających azbest (demontaż, zbieranie, transport)",null,null,null,{"$f":"D9*D13","v":0},"00:00:00","00:00:00",{"$f":"I10-J9","v":0},{"$f":"ROUNDDOWN(0.5*F10*Pomocnicz!K10,2)","v":0},{"$f":"IF($N$8=1,\"brutto\",\"netto\")","v":"brutto"},{"$f":"F10-I10","v":0}]
[null,null,null,null,null,{"$f":"D9*E14","v":0},null,null,{"$f":"ROUND(F10*0.85*Pomocnicz!K10,2)","v":0},null,{"$f":"IF($N$8=1,\"brutto\",\"netto\")","v":"brutto"}]
[]
[]
["koszt jednostkowy [zł/Mg]"]
[null,null,null,null,{"$f":"IF(D13>700,700,D13)","v":0}]

{"sheet":"WNIOSEK","index":1,"n_rows":123,"n_cols":25,"rows_kept":123,"cut":false,"hidden":false,"merged":[[82,1,82,25],[21,15,21,22],[96,2,96,23],[34,1,34,24],[50,4,50,24],[48,4,48,24],[87,20,87,21],[88,3,88,19],[89,3,89,19],[93,2,93,25],[85,3,85,19],[32,1,32,24],[66,2,66,25],[85,22,85,23],[86,22,86,23],[87,22,87,23],[115,13,115,24],[103,2,103,25],[102,2,102,25],[108,2,108,25],[107,2,107,25],[106,2,106,25],[105,2,105,25],[104,2,104,25],[121,1,121,25],[95,1,95,25],[88,20,88,21],[89,20,89,21],[90,20,91,21],[88,22,88,23],[89,22,89,23],[90,22,91,23],[101,2,101,25],[110,1,110,25],[97,1,97,24],[90,2,91,19],[120,1,120,24],[116,13,116,24],[116,1,116,6],[115,1,115,6],[80,1,80,9],[81,1,81,24],[49,1,49,10],[55,14,55,24],[0,23,0,24],[7,1,7,25],[53,1,53,24],[61,4,61,11],[52,1,52,25],[43,1,43,25],[48,1,48,3],[50,1,50,3],[47,10,47,12],[44,1,44,18],[44,19,44,22],[79,1,79,9],[3,1,3,24],[57,1,57,25],[59,12,59,19],[60,12,60,19],[64,1,64,25],[61,12,61,19],[59,4,59,11],[60,4,60,11],[49,11,49,14],[33,1,33,24],[35,1,35,24],[36,1,36,24],[41,13,41,17],[13,1,13,24],[22,15,22,24],[87,3,87,19],[85,20,85,21],[86,20,86,21],[54,2,54,24],[56,2,56,24],[63,1,63,24],[65,1,65,13],[83,1,83,25],[69,1,69,25],[71,2,77,24],[67,12,67,14],[68,1,68,24],[67,15,67,18],[70,2,70,24],[86,3,86,19],[55,1,55,7],[10,1,10,24],[15,1,15,10],[17,1,17,24],[19,1,19,24],[12,1,12,24],[45,1,45,3],[45,4,45,21],[28,1,28,24],[22,1,22,13],[30,1,30,24],[26,1,26,24],[40,1,40,24]]}
[null,null,null,null,null,null,null,null,null,null,null,null,null,null,null,null,null,null,null,null,null,null,null,"W-11"]
[]
[]
[null," WNIOSEK  O  DOTACJĘ\nw ramach programu priorytetowego  NFOŚiGW pod nazwą \n „Ogólnopolski program finansowania usuwania wyrobów zawierających azbest”\n"]
[null,"Data rejestracji ..............................................."]
[null,"Wpisano do rejestru pod nr ............................"]
[]
[null,"CZĘŚĆ I.  DANE DOTYCZĄCE WNIOSKODAWCY:"]
[]
[null,"1. Nazwa "]
[]
[null,"Adres"]
[]
[]
[null,"telefon"]
[]
[null,"fax"]
[]
[null,"adres poczty elektronicznej, adres e-mail"]
[]
[null,"2. Numery:"]
[null," N I P :",null,null,null,null,null,null,null,null,null,null,null,null,null,"REGON:"]
[]
[]
[null,"3. Osoba prowadząca sprawę:"]
[null,"Imię i nazwisko"]
[]
[null,"nr telefonu: "]
[]
[null,"adres poczty elektronicznej, adres e-mail"]
[]
[null,"4.  Rachunek bankowy Wnioskodawcy, na który należy przekazać dotację:"]
[null,"Numer konta bankowego"]
[]
[null,{"$f":"CONCATENATE(MID(B34,1,2),\" \",MID(B34,3,4),\" \",MID(B34,7,4),\" \",MID(B34,11,4),\" \",MID(B34,15,4),\" \",MID(B34,19,4),\" \",MID(B34,23,4))","v":"      "}]
[null,"Nazwa banku"]
[]
[]
[null,"5.  Czy wnioskodawca prowadzi działalność gospodarczą"]
[]
[null,"6. Wartość wskaźnika G dochodów podatkowych na jednego mieszkańca w gminie, o których mowa  w ustawie z dnia 13 listopada 2003 r. o dochodach jednostek samorządu terytorialnego (t.j. Dz.U z"]
[null,"2018 r. poz. 1530 z póź. zm.) na rok 2019 wynosi: ",null,null,null,null,null,null,null,null,null,null,null,{"$f":"Pomocnicz!J10","v":933.63}]
[]
[null,"CZĘŚĆ II. WNIOSEK "]
[null,"1. Wnioskujemy o przyznanie dotacji na rok 2020 r. w kwocie: ",null,null,null,null,null,null,null,null,null,null,null,null,null,null,null,null,null,{"$f":"Harmonogram!I10","v":0}]
[null,"  słownie: ",null,null,{"$f":"Słownie(T45)","v":"zero złotych "}]
[]
[null,"2. Koszt całkowity zadania :",null,null,null,null,null,null,null,null,{"$f":"Harmonogram!F9","v":0}]
[null,"  słownie: ",null,null,{"$f":"Słownie(K48)","v":"zero złotych "}]
[null,"w tym koszt kwalifikowany zadania:",null,null,null,null,null,null,null,null,null,{"$f":"Harmonogram!F10","v":0}]
[null,"  słownie: ",null,null,{"$f":"Słownie(L50)","v":"zero złotych "}]
[]
[null,"Koszt kwalifikowany zadania nie może przekroczyć iloczynu 700 zł i sumy całkowitego efektu ekologicznego, wyrażonego w Mg unieszkodliwionych odpadów zawierających azbest. "]
[null,"3. Oświadczenie o podatku VAT"]
[null,null,"Oświadczamy, że w przypadku niniejszego zadania podatek VAT stanowi  koszt ponoszony na jego realizację i  nie przysługuje  prawo jego odliczenia/odzyskania  zgodnie z przepisami ustawy z dnia 11 marca 2004 r. o podatku od towarów i usług (Dz.U.2018.2174 z późn. zm.)"]
[]
[null,null,"Oświadczamy, że w przypadku niniejszego zadania podatek VAT nie stanowi kosztu ponoszonego na jego realizację i przysługuje prawo jego odliczenia/odzyskania zgodnie z przepisami ustawy z dnia 11 marca 2004 r. o podatku od towarów i usług (Dz.U.2018.2174 z późn. zm.)"]
[null,"4. Plan finansowania zadaniaw zł:*"]
[]
[null,null,null,null,"dotacja WFOŚiGW  ",null,null,null,null,null,null,null,{"$f":"Harmonogram!$I$9","v":0},null,null,null,null,null,null,null,null,null,{"$f":"IF(Harmonogram!N8=1,1,2)","v":1}]
[null,null,null,null,"dotacja NFOŚiGW",null,null,null,null,null,null,null,{"$f":"Harmonogram!$J$9","v":0}]
[null,null,null,null,"inne źródła finansowania/środki własne",null,null,null,null,null,null,null,{"$f":"Harmonogram!$L$9","v":0}]
[]
[null,"* Planowany montaż finansowy zadania musi być zgodny z warunkami określonymi w „Procedurze dofinansowania przedsięwzięć dotyczących usuwania azbestu i wyrobów zawierających azbest przez WFOŚiGW w Rzeszowie”"]
[null,"5. Dotacja zostanie przeznaczona na finansowanie zadania p.n.: "]
[null,"Usuwanie wyrobów zawierających azbest z terenu Gminy ",null,null,null,null,null,null,null,null,null,null,null,null,{"$f":"Harmonogram!J1","v":"BALIGRÓD"}]
[null,null,"6. Planowane terminy płatności:"]
[null,null,"III/IV kwartał*:",null,null,null,null,null,null,null,null,null,"kwota  ",null,null,{"$f":"T45","v":0}]
[null,"* lecz nie później niż do dnia 25.10.2020 r."]
[null,"CZĘŚĆ III. CHARAKTERYSTYKA ZADANIA"]
[null,null,"2. Szczegółowy opis zadania ze wskazaniem lokalizacji – miejscowości i numery budynków, posesji (opis zadania powinien być zgodny z zapisami gminnego programu usuwania azbestu i wyrobów zawierających azbest lub z zapisami programu związku międzygminnego, "]
[]
[]
[]
[]
[]
[]
[]
[]
[null,"2. Termin rozpoczęcia zadania:",null,null,null,null,null,null,null,null,{"$f":"Harmonogram!G9","v":"00:00:00"}]
[null,"3. Termin zakończenia zadania: ",null,null,null,null,null,null,null,null,{"$f":"Harmonogram!H9","v":"00:00:00"}]
[null,"* lecz nie później niż do dnia 25.10.2020  r."]
[null,"\nCZĘŚĆ IV. PRZEWIDYWANY EFEKT RZECZOWY I EKOLOGICZNY:\n"]
[null,"1. Planowana ilość materiałów zawierających azbest, które zostaną unieszkodliwione wg źródła ich pochodzenia"]
[]
[null,null,"Lp","Źródło pochodzenia odpadów",null,null,null,null,null,null,null,null,null,null,null,null,null,null,null,null,"Ilość w m2",null,"Ilość w Mg"]
[null,null,1,"Pokrycia dachowe i inne elementy budowlane zawierające azbest planowane do demontażu i unieszkodliwienia z obiektów należących do osób fizycznych oraz przedsiębiorców ",null,null,null,null,null,null,null,null,null,null,null,null,null,null,null,null,null,null,null,null,"    "]
[null,null,2,"Pokrycia dachowe i inne elementy budowlane zawierające azbest planowane do demontażu i unieszkodliwienia z obiektów należących do jednostki samorządu terytorialnego "]
[null,null,3,"Materiały budowlane zawierające azbest zgromadzone na działkach gruntowych należących do osób fizycznych oraz przedsiębiorców"]
[null,null,4,"Materiały budowlane zawierające azbest zgromadzone na działkach gruntowych należących do jednostki samorządu terytorialnego"]
[null,null,"RAZEM"]
[]
[]
[]
[]
[null,"2. Sposób określenia planowanego efektu ekologicznego /podać zastosowane przeliczniki m2 na Mg/ wraz z podstawą jego wyliczenia"]
[]
[null,"Zaleca się, aby określając ilość odpadów zawierających azbest planowanych do unieszkodliwienia przyjąć, że 1m²  płyt azbestowo-cementowych waży 0,015 Mg."]
[]
[null,"CZĘŚĆ V. OŚWIADCZENIA (proszę zaznaczyć stosowne oświadczenia)"]
[]
[null,null,"Oświadczam, że Gmina wywiązuje się:\n- z obowiązku uiszczania opłat za korzystanie ze środowiska i administracyjnych kar pieniężnych wynikających z ustawy Prawo Ochrony Środowiska,\n- ze świadczeń publicznoprawnych na rzecz Zakładu Ubezpieczeń Społecznych,   \n- ze świadczeń publicznoprawnych na rzecz Urzędu Skarbowego,\n- z zobowiązań w stosunku do Funduszu wynikających z wcześniej zawartych umów."]
[null,null,"Oświadczam, że Gmina wywiązuje się z zobowiązań cywilnoprawnych na rzecz NFOŚiGW;"]
[null,null,"Oświadczam, że na terenie Gminy  przeprowadzono inwentaryzację wyrobów zawierających azbest;"]
[null,null,"Oświadczam, że Gmina posiada Uchwałę Rady Gminy zatwierdzającą Gminny program usuwania azbestu lub w przypadku gdy gmina nie posiada własnego programu a należy do związku gmin, który posiada program – uchwałę zatwierdzającą Związkowy program usuwania azbestu oraz oświadczenie wójta (dot. akceptacji Związkowego programu w części dot. gminy);"]
[null,null,"Oświadczam, że zadanie zgłoszone we wniosku jest zgodne z gminnym programem usuwania azbestu i wyrobów zawierających azbest lub przyjętym przez gminę programem związku międzygminnego, którego gmina jest członkiem;"]
[null,null,"Oświadczam, że przy wyborze przedsięwzięć do dofinansowania Gmina weryfikowała stopień pilności usunięcia i unieszkodliwienia lub zabezpieczenia odpadów zawierających azbest;"]
[null,null,"Oświadczam, że Gmina umieści ogłoszenie o zamówieniu w Biuletynie Informacji Publicznej Gminy;  "]
[null,null,"Oświadczam, że Gmina dokona weryfikacji dokumentów potwierdzających uprawnienie Wykonawcy do wykonywania działalności związanej z usuwaniem wyrobów zawierających azbest;  "]
[]
[null,"Świadomi odpowiedzialności karnej wynikającej z art. 233 § 1 Kodeksu karnego za składanie fałszywych zeznań oświadczamy, że zawarte we wniosku dane są zgodne ze stanem faktycznym i prawnym. Wiarygodność podanych we wniosku danych stwierdzamy własnoręcznym podpisem.\n"]
[]
[]
[]
[]
[null,"....................................",null,null,null,null,null,null,null,null,null,null,null,"..............................................................................."]
[null,"/Miejscowość, data/",null,null,null,null,null,null,null,null,null,null,null,"(pieczęć firmowa i podpisy osób upoważnionych do zaciągania zobowiązań majątkowych)"]
[]
[]
[]
[null,"Wykaz dokumentów do wniosku o dotację (W-11)"]
[null,"Do wniosku o  dotację należy załączyć wymienione niżej dokumenty:"]
[null,"1. Harmonogram finansowo-rzeczowy (załącznik nr 1 do wniosku)."]

{"sheet":"Arkusz1","index":2,"n_rows":26,"n_cols":12,"rows_kept":26,"cut":false,"hidden":true,"merged":[[7,3,7,26],[13,2,16,17]]}
[]
[]
[]
[]
[]
[]
[]
[null,null,null,"Oświadczamy, że w przypadku niniejszego podatek VAT  stanowi / nie stanowi koszt ponoszony na jego realizację i przysługuje / nie przysługuje*  prawo jego odliczenia / odzyskania zgodnie z przepisami ustawy z dnia 11 marca 2004 r. o podatku od towarów i usług (Dz.U.2018.2174 z późn. zm.)"]
[]
[]
[]
[]
[]
[null,null,"Oświadczamy, że w przypadku niniejszego podatek VAT  stanowi / nie stanowi koszt ponoszony na jego realizację i przysługuje / nie przysługuje*  prawo jego odliczenia / odzyskania zgodnie z przepisami ustawy z dnia 11 marca 2004 r. o podatku od towarów i usług (Dz.U.2018.2174 z późn. zm.)"]
[]
[]
[]
[]
[]
[]
[]
[]
[]
[]
[null,null,null,null,null,null,null,"stanowi ",null,"przysługuje",null,"odliczenia"]
[null,null,null,null,null,null,null,"nie stanowi",null,"nie przysługuje",null,"odzyskania"]

{"sheet":"Pomocnicz","index":3,"n_rows":161,"n_cols":12,"rows_kept":161,"cut":false,"hidden":true,"merged":[]}
[null,null,null,null,"Wybierz nazwę Gminy",0]
["18","14","02",2,"ADAMÓWKA",740.91]
["18","21","01",2,"BALIGRÓD",933.63,null,null,null,null,"Przedział"]
["18","20","01",3,"BARANÓW SANDOMIERSKI",1054.23,null,null,null,null,0,1]
["18","17","02",2,"BESKO",801.13,null,null,null,null,1501,0.7]
["18","10","02",2,"BIAŁOBRZEGI",1045.5999999999999,null,null,null,null,2001,0.4]
["18","13","01",2,"BIRCZA",901.56]
["18","16","02",3,"BŁAŻOWA",773.59]
["18","16","03",3,"BOGUCHWAŁA",1330.51,null,null,"Gmina ","Wskaznik G","%"]
["18","18","02",2,"BOJANÓW",707.16,null,null,{"$f":"Harmonogram!J1","v":"BALIGRÓD"},{"$f":"VLOOKUP(I10,E1:F161,2,FALSE)","v":933.63},{"$f":"VLOOKUP(J10,K4:L6,2,TRUE)","v":1}]
["18","11","02",2,"BOROWA",998.52]
["18","03","02",3,"BRZOSTEK",714.44]
["18","02","01",3,"BRZOZÓW",1012.1]
["18","05","02",2,"BRZYSKA",656.17]
["18","17","03",2,"BUKOWSKO",974.88]
["18","04","03",2,"CHŁOPICE",821.91]
["18","16","04",2,"CHMIELNIK",1026.31,null,"Wskaźnik G - podstawowych dochodów podatkowych  na 1 mieszkańca gminy przyjęty do obliczania subwencji wyrównawczej na 2020 r."]
["18","07","01",2,"CHORKÓWKA",899.35]
["18","09","02",3,"CIESZANÓW",998.77]
["18","21","02",2,"CISNA",2436.65]
["18","06","01",2,"CMOLAS",703.54]
["18","01","03",2,"CZARNA pow. bieszczadzki",1199.3599999999999]
["18","03","03",2,"CZARNA pow. dębicki",950.08]
["18","10","03",2,"CZARNA pow. łańcucki",1129.3399999999999]
["18","11","03",2,"CZERMIN",1038.9000000000001]
["18","19","01",2,"CZUDEC",1004.43]
["18","03","01",1,"DĘBICA",1563.58]
["18","03","04",2,"DĘBOWIEC",656.08]
["18","05","03",2,"DOMARADZ",652.6]
["18","02","02",2,"DUBIECKO",699.11]
["18","13","02",2,"DUKLA",1069.54]
["18","07","02",3,"DYDNIA",777.77]
["18","02","03",2,"DYNÓW",674.99]
["18","16","01",1,"DZIKOWIEC",526.94000000000005]
["18","16","05",2,"FREDROPOL",753.09]
["18","06","06",2,"FRYSZTAK",872.16]
["18","13","03",2,"GAĆ",879.75]
["18","19","02",2,"GAWŁUSZOWICE",883.92]
["18","14","03",2,"GŁOGÓW MAŁOPOLSKI",1663.07]
["18","11","04",2,"GORZYCE",1327.95]
["18","16","06",3,"GRĘBÓW",1209.67]
["18","20","02",2,"GRODZISKO DOLNE",912.05]
["18","20","03",2,"HACZÓW",878.3]
["18","08","02",2,"HARASIUKI",557.80999999999995]
["18","02","04",2,"HORYNIEC-ZDRÓJ",923.57]
["18","12","01",2,"HYŻNE",733.65]
["18","09","03",2,"IWIERZYCE",938.41]
["18","16","07",2,"IWONICZ-ZDRÓJ",875.12]
["18","15","01",2,"JAROCIN",619.20000000000005]
["18","07","03",3,"JAROSŁAW",989.63]
["18","12","02",2,"JASIENICA ROSIELNA",792.37]
["18","04","01",1,"JASŁO",901.3]
["18","04","04",2,"JAŚLISKA",766.2]
["18","02","05",2,"JAWORNIK POLSKI",679.1]
["18","05","01",1,"JEDLICZE",1474.15]
["18","05","04",2,"JEŻOWE",585.29]
["18","07","10",2,"JODŁOWA",628.04]
["18","14","04",2,"KAMIEŃ",664.36]
["18","07","04",3,"KAŃCZUGA",946.69]
["18","12","03",2,"KOLBUSZOWA",1294.6199999999999]
["18","03","05",2,"KOŁACZYCE",676.33]
["18","16","08",2,"KOMAŃCZA",1313.73]
["18","14","05",3,"KORCZYNA",1042.33]
["18","06","02",3,"KRASICZYN",1192.27]
["18","05","05",3,"KRASNE",1602.91]
["18","17","04",2,"KREMPNA",812.28]
["18","07","05",2,"Krosno",1906.24]
["18","13","04",2,"KROŚCIENKO WYŻNE",1309.01]
["18","16","09",2,"KRZESZÓW",785.81]
["18","05","06",2,"KRZYWCZA",561.73]
["18","61","01",1,"KURYŁÓWKA",726.54]
["18","07","06",2,"LASZKI",821.63]
["18","12","04",2,"LESKO",1044]
["18","13","05",2,"LEŻAJSK",1113.48]
["18","08","03",2,"LUBACZÓW",831.94]
["18","04","05",2,"LUBENIA",959.42]
["18","21","03",3,"LUTOWISKA",2095.2399999999998]
["18","08","01",1,"ŁAŃCUT",1033.17]
["18","08","04",2,"MAJDAN KRÓLEWSKI",608.49]
["18","09","01",1,"MARKOWA",1131.6199999999999]
["18","09","04",2,"MEDYKA",1250.19]
["18","16","10",2,"MIASTO DĘBICA",1880.12]
["18","01","05",2,"MIASTO DYNÓW",947.92]
["18","10","01",1,"MIASTO JAROSŁAW",1530.48]
["18","10","04",2,"MIASTO JASŁO",1833.95]
["18","06","03",2,"MIASTO LEŻAJSK",1498.64]
["18","10","05",2,"MIASTO LUBACZÓW",1129.77]
["18","13","06",2,"MIASTO ŁAŃCUT",1721.6]
["18","07","07",2,"MIASTO MIELEC",2061.5500000000002]
["18","11","01",1,"MIASTO PRZEWORSK",1604.76]
["18","11","05",2,"MIASTO RADYMNO",1188.3499999999999]
["18","09","05",3,"MIASTO SANOK",1563.62]
["18","19","03",2,"MIASTO STALOWA WOLA",1882.39]
["18","12","05",3,"MIEJSCE PIASTOWE",969.6]
["18","06","04",2,"MIELEC",1342.35]
["18","20","04",3,"NAROL",732.84]
["18","08","05",3,"NIEBYLEC",760.87]
["18","05","07",2,"NISKO",1356.66]
["18","02","06",2,"NIWISKA",773.83]
["18","09","06",3,"NOWA DĘBA",1532.6]
["18","21","04",2,"NOWA SARZYNA",1039.29]
["18","13","07",2,"NOWY ŻMIGRÓD",653.39]
["18","05","08",2,"NOZDRZEC",683.27]
["18","15","02",2,"OLESZYCE",1070.8399999999999]
["18","11","06",2,"OLSZANICA",798.02]
["18","04","06",2,"ORŁY",950.9]
["18","03","06",3,"OSIEK JASIELSKI",617.51]
["18","04","07",3,"OSTRÓW",1214.43]
["18","11","07",3,"PADEW NARODOWA",827.76]
["18","13","08",2,"PAWŁOSIÓW",1010.12]
["18","62","01",1,"PILZNO",1317.47]
["18","14","01",1,"PRUCHNIK",831.7]
["18","14","06",2,"PRZECŁAW",925.69]
["18","18","03",2,"PRZEMYŚL",1184.5899999999999]
["18","18","04",2,"Przemyśl",1458.81]
["18","11","08",3,"PRZEWORSK",842.24]
["18","04","02",1,"PYSZNICA",1161.31]
["18","04","08",2,"RADOMYŚL NAD SANEM",1156.1500000000001]
["18","10","06",2,"RADOMYŚL WIELKI",977.32]
["18","06","05",2,"RADYMNO",960.55]
["18","04","09",2,"RAKSZAWA",886.39]
["18","15","03",3,"RANIŻÓW",734.45]
["18","04","10",2,"ROKIETNICA",1130.43]
["18","12","06",3,"ROPCZYCE",1354.23]
["18","07","08",3,"ROŹWIENICA",716.94]
["18","63","01",1,"RUDNIK NAD SANEM",948.56]
["18","17","01",1,"RYMANÓW",1066.8599999999999]
["18","17","05",2,"Rzeszów",1971.71]
["18","15","04",3,"SANOK",1038.92]
["18","14","07",3,"SĘDZISZÓW MAŁOPOLSKI",1230.0999999999999]
["18","05","09",2,"SIENIAWA",917.44]
["18","16","11",3,"SKOŁYSZYN",885]
["18","21","05",2,"SOKOŁÓW MAŁOPOLSKI",811.42]
["18","18","01",1,"SOLINA",2871.51]
["18","09","07",2,"STARY DZIKÓW",1300.26]
["18","19","04",3,"STRZYŻÓW",906.67]
["18","13","09",2,"STUBNO",780.64]
["18","16","12",2,"ŚWILCZA",1110.52]
["18","64","01",1,"Tarnobrzeg",1341.38]
["18","05","11",2,"TARNOWIEC",833.07]
["18","14","08",2,"TRYŃCZA",1226.4000000000001]
["18","16","13",2,"TRZEBOWNISKO",1690.32]
["18","11","09",2,"TUSZÓW NARODOWY",1127.5]
["18","16","14",3,"TYCZYN",1201.8900000000001]
["18","17","06",2,"TYRAWA WOŁOSKA",752.95]
["18","12","07",3,"ULANÓW",713.23]
["18","01","08",3,"USTRZYKI DOLNE",1138.23]
["18","11","10",2,"WADOWICE GÓRNE",1046.8]
["18","04","11",2,"WIĄZOWNICA",1092.81]
["18","09","08",2,"WIELKIE OCZY",795.53]
["18","15","05",2,"WIELOPOLE SKRZYŃSKIE",579.66999999999996]
["18","19","05",2,"WIŚNIOWA",707.44]
["18","07","09",2,"WOJASZÓWKA",902.8]
["18","17","07",3,"ZAGÓRZ",1116.99]
["18","18","05",3,"ZAKLIKÓW",967.55]
["18","18","06",2,"ZALESZANY",1105.06]
["18","17","08",2,"ZARSZYN",860.97]
["18","14","09",2,"ZARZECZE",711.49]
["18","10","07",2,"ŻOŁYNIA",989.76]
["18","13","10",2,"ŻURAWICA",1336.56]
["18","03","07",2,"ŻYRAKÓW",1316.55]